fUST/lending_fUST_20250605
["ID","MTS","AMOUNT","RATE_DAILY","PERIOD"]
[364315457,1749066635467,-440.0,0.00020088,2]
[364315458,1749066635477,-194.76318022,0.00020143,2]
[364315459,1749066635487,-170.786251,0.00020187,2]
[364315460,1749066635497,-445.06727419,0.00020188,2]
[364315461,1749066635506,-500.0,0.00020235,2]
[364315462,1749066635515,-501.53825745,0.00020235,2]
[364315463,1749066635525,-500.0,0.00020235,2]
[364315464,1749066635535,-500.0,0.00020235,2]
[364315465,1749066635545,-500.0,0.00020281,2]
[364315466,1749066635554,-500.0,0.00020281,2]
[364315467,1749066635563,-505.67096782,0.00020281,2]
[364315468,1749066635573,-645.84577878,0.00020281,2]
[364315469,1749066635582,-500.0,0.00020281,2]
[364315470,1749066635591,-500.57695476,0.00020281,2]
[364315471,1749066635601,-156.24763388,0.00020281,2]
[364315472,1749066635610,-512.8240996,0.00020281,2]
[364315473,1749066635619,-500.24466392,0.00020281,2]
[364315474,1749066635628,-500.0,0.00020281,2]
[364315475,1749066635638,-501.07931688,0.00020281,2]
[364315476,1749066635648,-500.0,0.00020281,2]
[364315477,1749066635657,-501.42835331,0.00020281,2]
[364315478,1749066635666,-505.40322186,0.00020281,2]
[364315479,1749066635677,-507.7224305,0.00020281,2]
[364315480,1749066635686,-411.14815125,0.00020281,2]
[364315481,1749066635696,-500.0,0.00020307,2]
[364315482,1749066635706,-380.0,0.00020333,2]
[364315483,1749066635715,-979.24,0.00020333,2]
[364315484,1749066635725,-440.0,0.00020333,2]
[364315485,1749066635734,-954.73,0.00020333,2]
[364315486,1749066635743,-440.0,0.00020333,2]
[364315487,1749066635752,-380.0,0.00020333,2]
[364315488,1749066635761,-1281.41,0.00020333,2]
[364315489,1749066635771,-1211.08,0.00020334,2]
[364315490,1749066635781,-400.0,0.00020334,2]
[364315491,1749066635790,-524.73,0.00020334,2]
[364315492,1749066635800,-1979.75,0.00020334,2]
[364315493,1749066635809,-370.0,0.00020334,2]
[364315494,1749066635819,-370.0,0.00020334,2]
[364315495,1749066635828,-370.0,0.00020334,2]
[364315496,1749066635837,-400.0,0.00020334,2]
[364315497,1749066635846,-509.42,0.00020334,2]
[364315498,1749066635856,-440.0,0.00020334,2]
[364315499,1749066635864,-440.0,0.00020334,2]
[364315500,1749066635873,-440.0,0.00020334,2]
[364315501,1749066635883,-370.0,0.00020334,2]
[364315502,1749066635891,-645.87,0.00020335,2]
[364315503,1749066635901,-380.0,0.00020335,2]
[364315504,1749066635909,-562.5,0.00020335,2]
[364315505,1749066635919,-440.0,0.00020335,2]
[364315506,1749066635929,-370.0,0.00020335,2]
[364315507,1749066635939,-440.0,0.00020335,2]
[364315508,1749066635948,-524.6,0.00020335,2]
[364315509,1749066635958,-440.0,0.00020335,2]
[364315510,1749066635966,-440.0,0.00020335,2]
[364315511,1749066635976,-929.99,0.00020336,2]
[364315512,1749066635985,-1798.82,0.00020336,2]
[364315513,1749066635995,-758.29,0.00020336,2]
[364315514,1749066636005,-348.35494578,0.00020336,2]
[364315515,1749066636014,-380.0,0.00020336,2]
[364315516,1749066636023,-440.0,0.00020336,2]
[364315517,1749066636033,-440.0,0.00020336,2]
[364315518,1749066636042,-380.0,0.00020336,2]
[364315519,1749066636051,-440.0,0.00020336,2]
[364315520,1749066636061,-443.12,0.00020337,2]
[364315521,1749066636070,-440.0,0.00020337,2]
[364315522,1749066636080,-440.0,0.00020337,2]
[364315523,1749066636090,-440.0,0.00020337,2]
[364315524,1749066636099,-440.0,0.00020337,2]
[364315525,1749066636108,-440.0,0.00020337,2]
[364315526,1749066636118,-320.0,0.00020337,2]
[364315527,1749066636127,-440.0,0.00020337,2]
[364315528,1749066636136,-440.0,0.00020337,2]
[364315529,1749066636146,-498.26,0.00020361,2]
[364315530,1749066636155,-440.0,0.00020361,2]
[364315531,1749066636167,-1494.56,0.00020361,2]
[364315532,1749066636176,-1174.36,0.00020361,2]
[364315533,1749066636186,-440.0,0.00020361,2]
[364315534,1749066636195,-440.0,0.00020361,2]
[364315535,1749066636205,-676.34,0.00020361,2]
[364315536,1749066636215,-440.0,0.00020361,2]
[364315537,1749066636224,-1098.45,0.00020361,2]
[364315538,1749066636233,-440.0,0.00020361,2]
[364315539,1749066636242,-350.0,0.00020362,2]
[364315540,1749066636252,-500.0,0.0002038,2]
[364315541,1749066636261,-423.69433488,0.00020414,2]
[364315542,1749066636271,-229.45591648,0.00020414,2]
[364315543,1749066636280,-160.0,0.00020414,2]
[364315544,1749066636291,-163.8376925,0.00020418,2]
[364315545,1749066636307,-500.0,0.00020547,2]
[364315546,1749066636318,-979.24,0.00020607,2]
[364315547,1749066636327,-440.0,0.00020607,2]
[364315548,1749066636336,-954.73,0.00020607,2]
[364315549,1749066636346,-319.32699589,0.00020607,2]
[364315550,1749066636356,-1281.41,0.00020607,2]
[364315551,1749066636365,-1211.08,0.00020608,2]
[364315552,1749066636375,-524.73,0.00020608,2]
[364315553,1749066636385,-1979.75,0.00020608,2]
[364315554,1749066636395,-509.42,0.00020608,2]
[364315555,1749066636404,-440.0,0.00020608,2]
[364315556,1749066636413,-440.0,0.00020608,2]
[364315557,1749066636423,-440.0,0.00020608,2]
[364315558,1749066636433,-645.87,0.00020609,2]
[364315559,1749066636442,-440.0,0.00020609,2]
[364315560,1749066636451,-440.0,0.00020609,2]
[364315561,1749066636460,-440.0,0.00020609,2]
[364315562,1749066636470,-440.0,0.00020609,2]
[364315563,1749066636479,-929.99,0.0002061,2]
[364315564,1749066636489,-1798.82,0.0002061,2]
[364315565,1749066636499,-758.29,0.0002061,2]
[364315566,1749066636509,-440.0,0.0002061,2]
[364315567,1749066636519,-370.0,0.0002061,2]
[364315568,1749066636528,-440.0,0.0002061,2]
[364315569,1749066636538,-440.0,0.00020611,2]
[364315570,1749066636548,-400.0,0.00020611,2]
[364315571,1749066636557,-400.0,0.00020611,2]
[364315572,1749066636567,-400.0,0.00020611,2]
[364315573,1749066636577,-440.0,0.00020611,2]
[364315574,1749066636587,-440.0,0.00020611,2]
[364315575,1749066636597,-440.0,0.00020611,2]
[364315576,1749066636606,-498.26,0.00020635,2]
[364315577,1749066636616,-440.0,0.00020635,2]
[364315578,1749066636626,-1494.56,0.00020635,2]
[364315579,1749066636635,-1174.36,0.00020635,2]
[364315580,1749066636647,-440.0,0.00020635,2]
[364315581,1749066636656,-440.0,0.00020635,2]
[364315582,1749066636665,-676.34,0.00020635,2]
[364315583,1749066636674,-440.0,0.00020635,2]
[364315584,1749066636683,-1098.45,0.00020635,2]
[364315585,1749066636693,-440.0,0.00020635,2]
[364315586,1749066636702,-979.24,0.00020881,2]
[364315587,1749066636711,-444.85,0.00020881,2]
[364315588,1749066636721,-954.73,0.00020881,2]
[364315589,1749066636731,-1211.08,0.00020882,2]
[364315590,1749066636740,-524.73,0.00020882,2]
[364315591,1749066636749,-1979.75,0.00020882,2]
[364315592,1749066636759,-509.42,0.00020882,2]
[364315593,1749066636768,-360.0,0.00020882,2]
[364315594,1749066636778,-440.0,0.00020882,2]
[364315595,1749066636787,-440.0,0.00020882,2]
[364315596,1749066636796,-645.87,0.00020883,2]
[364315597,1749066636806,-440.0,0.00020883,2]
[364315598,1749066636815,-440.0,0.00020883,2]
[364315599,1749066636824,-440.0,0.00020883,2]
[364315600,1749066636834,-440.0,0.00020883,2]
[364315601,1749066636843,-929.99,0.00020884,2]
[364315602,1749066636852,-1798.82,0.00020884,2]
[364315603,1749066636861,-758.29,0.00020884,2]
[364315604,1749066636871,-192.02,0.00020884,2]
[364315605,1749066636880,-440.0,0.00020884,2]
[364315606,1749066636889,-440.0,0.00020885,2]
[364315607,1749066636898,-440.0,0.00020885,2]
[364315608,1749066636908,-558.554697,0.00020885,2]
[364315609,1749066636919,-330.0,0.00020885,2]
[364315610,1749066636929,-7776.36630997,0.000209,4]
[364315611,1749066636939,-500.0,0.00020908,2]
[364315612,1749066636948,-498.26,0.00020909,2]
[364315613,1749066636957,-440.0,0.00020909,2]
[364315614,1749066636967,-1494.56,0.00020909,2]
[364315615,1749066636977,-1174.36,0.00020909,2]
[364315616,1749066636987,-440.0,0.00020909,2]
[364315617,1749066636996,-440.0,0.00020909,2]
[364315618,1749066637007,-676.34,0.00020909,2]
[364315619,1749066637016,-440.0,0.00020909,2]
[364315620,1749066637028,-1098.45,0.00020909,2]
[364315621,1749066637038,-410.0,0.00020909,2]
[364315622,1749066637048,-307.66,0.00021028,3]
[364315623,1749066637059,-7776.36630977,0.00021038,4]
[364315624,1749066637068,-453.53076246,0.00021057,2]
[364315625,1749066637077,-400.0,0.00021095,2]
[364315626,1749066637087,-400.0,0.00021095,2]
[364315627,1749066637234,-400.0,0.00021095,2]
[364315628,1749066637246,-400.0,0.00021095,2]
[364315629,1749066637256,-400.0,0.00021095,2]
[364315630,1749066637265,-163.8376925,0.0002115,2]
[364315631,1749066637278,-979.24,0.00021155,2]
[364315632,1749066637287,-954.73,0.00021155,2]
[364315633,1749066637299,-400.0,0.00021156,2]
[364315634,1749066637308,-1211.08,0.00021156,2]
[364315635,1749066637318,-524.73,0.00021156,2]
[364315636,1749066637327,-1979.75,0.00021156,2]
[364315637,1749066637337,-509.42,0.00021156,2]
[364315638,1749066637348,-440.0,0.00021156,2]
[364315639,1749066637358,-440.0,0.00021156,2]
[364315640,1749066637370,-645.87,0.00021157,2]
[364315641,1749066637382,-440.0,0.00021157,2]
[364315642,1749066637393,-440.0,0.00021157,2]
[364315643,1749066637404,-440.0,0.00021157,2]
[364315644,1749066637416,-440.0,0.00021157,2]
[364315645,1749066637425,-929.99,0.00021158,2]
[364315646,1749066637435,-1798.82,0.00021158,2]
[364315647,1749066637444,-758.29,0.00021158,2]
[364315648,1749066637454,-440.0,0.00021158,2]
[364315649,1749066637464,-400.0,0.00021159,2]
[364315650,1749066637475,-440.0,0.00021159,2]
[364315651,1749066637485,-1600.0,0.00021164,2]
[364315652,1749066637496,-7776.36630977,0.00021176,4]
[364315653,1749066637506,-500.0,0.00021182,2]
[364315654,1749066637517,-498.26,0.00021183,2]
[364315655,1749066637528,-315.25726428,0.00021183,2]
[364315656,1749066637539,-1494.56,0.00021183,2]
[364315657,1749066637549,-1174.36,0.00021183,2]
[364315658,1749066637559,-440.0,0.00021183,2]
[364315659,1749066637569,-440.0,0.00021183,2]
[364315660,1749066637578,-676.34,0.00021183,2]
[364315661,1749066637588,-440.0,0.00021183,2]
[364315662,1749066637598,-1098.45,0.00021183,2]
[364315663,1749066637607,-745.61,0.00021248,3]
[364315664,1749066637617,-420.0,0.00021258,2]
[364315665,1749066637627,-364.4406513,0.00021288,2]
[364315666,1749066637637,-248.53,0.00021304,3]
[364315667,1749066637646,-7776.36630977,0.00021314,5]
[364315668,1749066637656,-979.24,0.00021429,2]
[364315669,1749066637667,-954.73,0.00021429,2]
[364315670,1749066637676,-400.0,0.0002143,2]
[364315671,1749066637686,-1211.08,0.0002143,2]
[364315672,1749066637696,-524.73,0.0002143,2]
[364315673,1749066637706,-1979.75,0.0002143,2]
[364315674,1749066637715,-509.42,0.0002143,2]
[364315675,1749066637726,-440.0,0.0002143,2]
[364315676,1749066637736,-440.0,0.0002143,2]
[364315677,1749066637746,-645.87,0.00021431,2]
[364315678,1749066637756,-440.0,0.00021431,2]
[364315679,1749066637767,-440.0,0.00021431,2]
[364315680,1749066637776,-449.49,0.00021431,2]
[364315681,1749066637786,-440.0,0.00021431,2]
[364315682,1749066637795,-929.99,0.00021432,2]
[364315683,1749066637805,-1798.82,0.00021432,2]
[364315684,1749066637814,-758.29,0.00021432,2]
[364315685,1749066637824,-440.0,0.00021432,2]
[364315686,1749066637833,-440.0,0.00021433,2]
[364315687,1749066637843,-7776.36630977,0.00021452,5]
[364315688,1749066637852,-498.26,0.00021457,2]
[364315689,1749066637861,-1494.56,0.00021457,2]
[364315690,1749066637870,-1174.36,0.00021457,2]
[364315691,1749066637880,-440.0,0.00021457,2]
[364315692,1749066637889,-440.0,0.00021457,2]
[364315693,1749066637900,-676.34,0.00021457,2]
[364315694,1749066637909,-440.0,0.00021457,2]
[364315695,1749066637918,-1098.45,0.00021457,2]
[364315696,1749066637927,-151.0,0.00021501,2]
[364315697,1749066637937,-151.0,0.00021501,2]
[364315698,1749066637946,-151.0,0.00021501,2]
[364315699,1749066637957,-500.0,0.00021501,2]
[364315700,1749066637966,-151.0,0.00021528,2]
[364315702,1749066637978,-151.0,0.00021528,2]
[364315703,1749066637989,-500.0,0.00021528,2]
[364315704,1749066637999,-203.3482826,0.00021556,2]
[364315705,1749066638008,-198.0,0.00021556,2]
[364315706,1749066638017,-500.0,0.00021556,2]
[364315707,1749066638027,-241.92254447,0.00021556,2]
[364315709,1749066638035,-151.0,0.00021556,2]
[364315711,1749066638045,-151.0,0.00021556,2]
[364315712,1749066638054,-151.0,0.00021556,2]
[364315713,1749066638063,-151.0,0.00021556,2]
[364315714,1749066638072,-151.5395447,0.00021556,2]
[364315715,1749066638081,-151.24666928,0.00021556,2]
[364315716,1749066638090,-506.91527344,0.00021583,2]
[364315717,1749066638099,-204.94527429,0.00021583,2]
[364315718,1749066638108,-198.0,0.00021583,2]
[364315720,1749066638118,-199.73141167,0.00021583,2]
[364315721,1749066638127,-151.0,0.00021583,2]
[364315723,1749066638136,-500.0,0.00021589,2]
[364315724,1749066638145,-7776.36630977,0.0002159,5]
[364315726,1749066638154,-199.33053675,0.00021611,2]
[364315728,1749066638163,-377.35,0.00021697,3]
[364315730,1749066638173,-979.24,0.00021703,2]
[364315731,1749066638181,-954.73,0.00021703,2]
[364315732,1749066638190,-400.0,0.00021704,2]
[364315733,1749066638199,-1211.08,0.00021704,2]
[364315734,1749066638208,-524.73,0.00021704,2]
[364315735,1749066638220,-1979.75,0.00021704,2]
[364315736,1749066638231,-509.42,0.00021704,2]
[364315737,1749066638240,-440.0,0.00021704,2]
[364315738,1749066638249,-440.0,0.00021704,2]
[364315739,1749066638258,-645.87,0.00021705,2]
[364315740,1749066638267,-440.0,0.00021705,2]
[364315741,1749066638276,-347.98,0.00021705,2]
[364315742,1749066638285,-440.0,0.00021705,2]
[364315743,1749066638296,-929.99,0.00021706,2]
[364315744,1749066638307,-1798.82,0.00021706,2]
[364315745,1749066638316,-758.29,0.00021706,2]
[364315746,1749066638326,-440.0,0.00021706,2]
[364315747,1749066638335,-440.0,0.00021707,2]
[364315748,1749066638345,-7776.36630977,0.00021728,5]
[364315749,1749066638354,-498.26,0.00021731,2]
[364315750,1749066638363,-1494.56,0.00021731,2]
[364315751,1749066638373,-1174.36,0.00021731,2]
[364315752,1749066638382,-440.0,0.00021731,2]
[364315753,1749066638391,-440.0,0.00021731,2]
[364315754,1749066638401,-676.34,0.00021731,2]
[364315755,1749066638409,-440.0,0.00021731,2]
[364315756,1749066638418,-1098.45,0.00021731,2]
[364315757,1749066638428,-453.53076245,0.00021767,2]
[364315758,1749066638437,-500.0,0.00021865,2]
[364315759,1749066638446,-7776.36630977,0.00021866,6]
[364315760,1749066638455,-500.0,0.00021917,2]
[364315761,1749066638464,-500.0,0.00021917,2]
[364315762,1749066638473,-500.0,0.00021917,2]
[364315763,1749066638483,-500.0,0.00021917,2]
[364315765,1749066638491,-500.0,0.00021917,2]
[364315766,1749066638502,-500.0,0.00021917,2]
[364315767,1749066638511,-500.0,0.00021917,2]
[364315769,1749066638521,-979.24,0.00021977,2]
[364315771,1749066638530,-954.73,0.00021977,2]
[364315773,1749066638539,-400.0,0.00021978,2]
[364315775,1749066638548,-1211.08,0.00021978,2]
[364315777,1749066638558,-524.73,0.00021978,2]
[364315779,1749066638568,-1979.75,0.00021978,2]
[364315781,1749066638577,-509.42,0.00021978,2]
[364315783,1749066638586,-440.0,0.00021978,2]
[364315785,1749066638596,-387.34005396,0.00021978,2]
[364315798,1749066638711,-450.86696955,0.00020881,2]
[364315821,1749066638937,-440.0,0.00019515,2]
[364315823,1749066638950,-2.95507078,0.00019515,2]
[364315825,1749066638961,-437.04492922,0.00019515,2]
[364315827,1749066638972,-285.83902278,0.00019786,2]
[364315829,1749066638985,-154.16097722,0.00019786,2]
[364315831,1749066638995,-420.0,0.00019788,2]
[364315833,1749066639005,-440.0,0.00019789,2]
[364315835,1749066639014,-575.65118638,0.0002006,2]
[364315837,1749066639023,-440.0,0.00020063,2]
[364315839,1749066639032,-368.22574546,0.00020337,2]
[364315841,1749066639044,-56.75756619,0.00020337,2]
[364315844,1749066639054,-830.54303045,0.00020881,2]
[364315846,1749066639064,-1281.41,0.00021155,2]
[364315847,1749066639073,-1026.04199533,0.00021429,2]
[364315850,1749066639084,-255.36800467,0.00021429,2]
[364315852,1749066639094,-1281.41,0.00021703,2]
[364315853,1749066639103,-163.8376925,0.00021883,2]
[364315856,1749066639114,-1281.41,0.00021977,2]
[364315858,1749066639124,-52.65994604,0.00021978,2]
[364315860,1749066639134,-645.87,0.00021979,2]
[364315862,1749066639144,-440.0,0.00021979,2]
[364315864,1749066639154,-440.0,0.00021979,2]
[364315866,1749066639163,-929.99,0.0002198,2]
[364315868,1749066639173,-1798.82,0.0002198,2]
[364315870,1749066639182,-758.29,0.0002198,2]
[364315871,1749066639192,-440.0,0.0002198,2]
[364315873,1749066639203,-440.0,0.00021981,2]
[364315875,1749066639212,-151.0,0.00022,7]
[364315876,1749066639221,-265.03,0.00022,7]
[364315879,1749066639231,-7776.36630977,0.00022003,6]
[364315881,1749066639241,-498.26,0.00022005,2]
[364315883,1749066639250,-1174.36,0.00022005,2]
[364315885,1749066639260,-1494.56,0.00022005,2]
[364315886,1749066639269,-370.65,0.00022005,2]
[364315888,1749066639279,-440.0,0.00022005,2]
[364315890,1749066639289,-676.34,0.00022005,2]
[364315892,1749066639302,-440.0,0.00022005,2]
[364315894,1749066639312,-71.79641122,0.00022005,2]
[364315897,1749066639324,-1026.65358878,0.00022005,2]
[364315899,1749066639334,-566.04,0.00022052,3]
[364315901,1749066639345,-704.81641122,0.00022061,2]
[364315903,1749066639357,-487.71662968,0.00022061,2]
[364315905,1749066639367,-769.41894986,0.00022062,2]
[364315907,1749066639376,-500.0,0.00022062,2]
[364315909,1749066639386,-500.0,0.00022062,2]
[364315911,1749066639395,-500.0,0.00022062,2]
[364315913,1749066639405,-500.0,0.00022062,2]
[364315915,1749066639414,-207.4,0.00022062,2]
[364315917,1749066639423,-500.0,0.00022062,2]
[364315919,1749066639433,-500.0,0.00022062,2]
[364315921,1749066639442,-500.0,0.00022062,2]
[364315923,1749066639451,-500.0,0.00022062,2]
[364315925,1749066639461,-1088.18338605,0.00022062,2]
[364315927,1749066639472,-3911.81661395,0.00022062,2]
[364315929,1749066639483,-500.0,0.00022062,2]
[364315931,1749066639492,-500.0,0.00022062,2]
[364315933,1749066639501,-500.0,0.00022062,2]
[364315935,1749066639510,-500.0,0.00022062,2]
[364315937,1749066639519,-246.22735807,0.00022062,2]
[364315939,1749066639531,-253.77264193,0.00022062,2]
[364315941,1749066639541,-500.0,0.00022062,2]
[364315943,1749066639550,-229.72735807,0.00022062,2]
[364315945,1749066639561,-270.27264193,0.00022062,2]
[364315947,1749066639571,-83344.09,0.000221,7]
[364315949,1749066639581,-7776.36630977,0.00022141,6]
[364315951,1749066639590,-188.68,0.00022246,3]
[364315953,1749066639599,-979.24,0.00022251,2]
[364315955,1749066639608,-954.73,0.00022251,2]
[364315957,1749066639618,-1281.41,0.00022251,2]
[364315969,1749066639743,-400.0,0.00022252,2]
[364315971,1749066639753,-1211.08,0.00022252,2]
[364315973,1749066639763,-524.73,0.00022252,2]
[364315975,1749066639773,-1979.75,0.00022252,2]
[364315977,1749066639783,-509.42,0.00022252,2]
[364315979,1749066639794,-440.0,0.00022252,2]
[364315981,1749066639805,-440.0,0.00022252,2]
[364315983,1749066639816,-645.87,0.00022253,2]
[364315985,1749066639825,-440.0,0.00022253,2]
[364315987,1749066639834,-440.0,0.00022253,2]
[364315989,1749066639844,-929.99,0.00022254,2]
[364315991,1749066639853,-1798.82,0.00022254,2]
[364315993,1749066639862,-758.29,0.00022254,2]
[364315995,1749066639872,-440.0,0.00022254,2]
[364315997,1749066639881,-440.0,0.00022255,2]
[364315999,1749066639891,-1600.0,0.0002226,2]
[364316001,1749066639900,-498.26,0.00022279,2]
[364316003,1749066639909,-1174.36,0.00022279,2]
[364316005,1749066639919,-1494.56,0.00022279,2]
[364316007,1749066639929,-440.0,0.00022279,2]
[364316009,1749066639939,-676.34,0.00022279,2]
[364316011,1749066639949,-440.0,0.00022279,2]
[364316013,1749066639958,-1098.45,0.00022279,2]
[364316015,1749066639967,-7776.36630977,0.00022279,6]
[364316017,1749066639978,-500.0,0.0002238,2]
[364316020,1749066639990,-500.0,0.00022387,2]
[364316022,1749066640000,-500.0,0.00022387,2]
[364316024,1749066640009,-500.0,0.00022387,2]
[364316026,1749066640019,-500.0,0.00022387,2]
[364316028,1749066640029,-500.0,0.00022387,2]
[364316030,1749066640038,-500.0,0.00022387,2]
[364316033,1749066640047,-7776.36630977,0.00022417,7]
[364316036,1749066640057,-500.0,0.00022465,2]
[364316037,1749066640066,-500.0,0.00022469,2]
[364316039,1749066640076,-453.53076245,0.00022476,2]
[364316041,1749066640085,-500.0,0.0002248,2]
[364316043,1749066640095,-160.3024375,0.0002248,2]
[364316045,1749066640105,-500.0,0.0002248,2]
[364316047,1749066640114,-575.49483425,0.0002248,2]
[364316049,1749066640123,-276.6268367,0.00022521,2]
[364316052,1749066640134,-979.24,0.00022525,2]
[364316053,1749066640144,-954.73,0.00022525,2]
[364316055,1749066640153,-1281.41,0.00022525,2]
[364316057,1749066640163,-400.0,0.00022526,2]
[364316059,1749066640172,-1211.08,0.00022526,2]
[364316061,1749066640182,-524.73,0.00022526,2]
[364316063,1749066640191,-1979.75,0.00022526,2]
[364316066,1749066640201,-509.42,0.00022526,2]
[364316069,1749066640210,-440.0,0.00022526,2]
[364316071,1749066640220,-440.0,0.00022526,2]
[364316074,1749066640231,-645.87,0.00022527,2]
[364316076,1749066640241,-440.0,0.00022527,2]
[364316078,1749066640251,-440.0,0.00022527,2]
[364316080,1749066640260,-929.99,0.00022528,2]
[364316082,1749066640269,-1798.82,0.00022528,2]
[364316084,1749066640278,-758.29,0.00022528,2]
[364316086,1749066640288,-440.0,0.00022528,2]
[364316088,1749066640302,-440.0,0.00022529,2]
[364316090,1749066640311,-500.0,0.00022541,2]
[364316092,1749066640320,-500.0,0.00022541,2]
[364316094,1749066640330,-500.0,0.00022541,2]
[364316096,1749066640339,-500.0,0.00022541,2]
[364316098,1749066640348,-500.0,0.00022541,2]
[364316100,1749066640358,-500.0,0.00022541,2]
[364316102,1749066640368,-498.26,0.00022553,2]
[364316104,1749066640379,-1174.36,0.00022553,2]
[364316106,1749066640388,-1494.56,0.00022553,2]
[364316108,1749066640397,-440.0,0.00022553,2]
[364316110,1749066640407,-676.34,0.00022553,2]
[364316112,1749066640416,-440.0,0.00022553,2]
[364316113,1749066640425,-1098.45,0.00022553,2]
[364316114,1749066640434,-7776.36630977,0.00022555,7]
[364316115,1749066640443,-151.0,0.00022561,7]
[364316116,1749066640451,-500.0,0.00022571,2]
[364316117,1749066640460,-500.0,0.00022571,2]
[364316118,1749066640468,-500.0,0.00022571,2]
[364316119,1749066640478,-5000.0,0.0002261,2]
[364316120,1749066640487,-497.06,0.00022674,3]
[364316121,1749066640496,-7776.36630977,0.00022693,7]
[364316122,1749066640505,-12500.0,0.00022704,3]
[364316123,1749066640514,-842.5625,0.0002271,3]
[364316124,1749066640523,-12500.0,0.00022713,3]
[364316125,1749066640532,-12500.0,0.00022721,3]
[364316126,1749066640541,-12500.0,0.0002273,3]
[364316127,1749066640550,-12500.0,0.00022739,3]
[364316128,1749066640559,-500.0,0.00022773,2]
[364316129,1749066640568,-500.0,0.00022773,2]
[364316130,1749066640577,-979.24,0.00022799,2]
[364316131,1749066640586,-954.73,0.00022799,2]
[364316132,1749066640595,-1281.41,0.00022799,2]
[364316133,1749066640604,-400.0,0.000228,2]
[364316134,1749066640613,-1211.08,0.000228,2]
[364316135,1749066640622,-524.73,0.000228,2]
[364316136,1749066640631,-1979.75,0.000228,2]
[364316137,1749066640640,-509.42,0.000228,2]
[364316138,1749066640648,-440.0,0.000228,2]
[364316139,1749066640657,-440.0,0.000228,2]
[364316140,1749066640666,-645.87,0.00022801,2]
[364316141,1749066640675,-440.0,0.00022801,2]
[364316142,1749066640684,-440.0,0.00022801,2]
[364316143,1749066640693,-929.99,0.00022802,2]
[364316144,1749066640702,-1798.82,0.00022802,2]
[364316145,1749066640711,-758.29,0.00022802,2]
[364316146,1749066640720,-440.0,0.00022802,2]
[364316147,1749066640729,-440.0,0.00022803,2]
[364316148,1749066640738,-498.26,0.00022827,2]
[364316149,1749066640748,-1174.36,0.00022827,2]
[364316150,1749066640757,-1494.56,0.00022827,2]
[364316151,1749066640766,-440.0,0.00022827,2]
[364316152,1749066640775,-676.34,0.00022827,2]
[364316153,1749066640784,-440.0,0.00022827,2]
[364316154,1749066640793,-1098.45,0.00022827,2]
[364316155,1749066640802,-7776.36630977,0.00022831,8]
[364316156,1749066640811,-1000.0,0.00022928,2]
[364316157,1749066640820,-1000.0,0.00022935,2]
[364316158,1749066640829,-1000.0,0.00022935,2]
[364316159,1749066640838,-1000.0,0.00022935,2]
[364316160,1749066640846,-501.49859335,0.00022935,2]
[364316161,1749066640855,-1000.0,0.00022935,2]